fUSD/lending_fUSD_20251024
["ID","MTS","AMOUNT","RATE_DAILY","PERIOD"]
[392306397,1761322344578,-500.0,0.00043013,30]
[392306398,1761322344588,-500.0,0.00043013,30]
[392306399,1761322344597,-898.81,0.00043013,30]
[392306400,1761322344607,-700.85,0.00043013,30]
[392306401,1761322344616,-500.0,0.00043013,30]
[392306402,1761322344625,-500.0,0.00043013,30]
[392306403,1761322344635,-500.0,0.00043013,30]
[392306404,1761322344644,-663.01,0.00043013,30]
[392306405,1761322344653,-500.0,0.00043013,30]
[392306406,1761322344664,-709.15,0.00043013,30]
[392306407,1761322344674,-500.0,0.00043013,30]
[392306408,1761322344683,-707.03,0.00043013,30]
[392306409,1761322344693,-829.57,0.00043013,30]
[392306410,1761322344703,-952.31,0.00043013,30]
[392306411,1761322344713,-500.0,0.00043013,30]
[392306412,1761322344723,-500.0,0.00043013,30]
[392306413,1761322344732,-527.2,0.00043013,30]
[392306414,1761322344743,-500.0,0.00043013,30]
[392306415,1761322344754,-500.0,0.00043013,30]
[392306416,1761322344764,-500.0,0.00043013,30]
[392306417,1761322344773,-500.0,0.00043013,30]
[392306418,1761322344783,-771.78,0.00043013,30]
[392306419,1761322344794,-706.52,0.00043013,30]
[392306420,1761322344804,-768.08,0.00043013,30]
[392306421,1761322344815,-599.68,0.00043013,30]
[392306422,1761322344825,-500.0,0.00043013,30]
[392306423,1761322344834,-500.0,0.00043013,30]
[392306424,1761322344844,-613.19,0.00043013,30]
[392306425,1761322344854,-500.0,0.00043013,30]
[392306426,1761322344863,-613.95,0.00043013,30]
[392306427,1761322344873,-500.0,0.00043013,30]
[392306428,1761322344883,-627.71,0.00043013,30]
[392306429,1761322344893,-500.0,0.00043013,30]
[392306430,1761322344903,-662.69,0.00043013,30]
[392306431,1761322344912,-526.63,0.00043013,30]
[392306432,1761322344922,-311.29672647,0.00043013,30]
[392306433,1761322344932,-620.2252073,0.00043013,30]
[392306434,1761322344942,-500.0,0.00043013,30]
[392306435,1761322344951,-1090.4,0.00043013,30]
[392306436,1761322344960,-500.0,0.00043013,30]
[392306437,1761322344969,-500.65,0.00043013,30]
[392306438,1761322344980,-500.0,0.00043013,30]
[392306439,1761322344990,-500.0,0.00043013,30]
[392306440,1761322344999,-624.06,0.00043013,30]
[392306441,1761322345009,-755.72,0.00043013,30]
[392306442,1761322345019,-500.0,0.00043013,30]
[392306443,1761322345029,-374.7437299,0.00043013,30]
[392306444,1761322345039,-500.0,0.00043013,30]
[392306445,1761322345049,-740.41,0.00043013,30]
[392306446,1761322345059,-500.0,0.00043013,30]
[392306447,1761322345069,-500.0,0.00043013,30]
[392306448,1761322345079,-500.0,0.00043013,30]
[392306449,1761322345088,-500.0,0.00043013,30]
[392306450,1761322345098,-500.0,0.00043013,30]
[392306451,1761322345107,-500.0,0.00043013,30]
[392306452,1761322345117,-500.0,0.00043013,30]
[392306453,1761322345128,-500.0,0.00043013,30]
[392306454,1761322345137,-500.0,0.00043013,30]
[392306455,1761322345147,-500.0,0.00043013,30]
[392306456,1761322345157,-500.0,0.00043013,30]
[392306457,1761322345168,-500.0,0.00043013,30]
[392306458,1761322345178,-406.81553224,0.00043013,30]
[392306459,1761322345188,-464.15734,0.00043013,30]
[392306460,1761322345199,-1136.13,0.00043013,30]
[392306461,1761322345209,-500.0,0.00043013,30]
[392306462,1761322345219,-549.55,0.00043013,30]
[392306463,1761322345227,-638.56,0.00043013,30]
[392306464,1761322345236,-686.03,0.00043013,30]
[392306465,1761322345246,-500.0,0.00043013,30]
[392306466,1761322345256,-706.79,0.00043013,30]
[392306467,1761322345266,-533.0430097,0.00043013,30]
[392306468,1761322345276,-500.0,0.00043013,30]
[392306469,1761322345285,-382.666022,0.00043013,30]
[392306470,1761322345296,-500.0,0.00043013,30]
[392306471,1761322345306,-500.0,0.00043013,30]
[392306472,1761322345315,-500.0,0.00043013,30]
[392306473,1761322345325,-602.64,0.00043013,30]
[392306474,1761322345334,-586.4,0.00043013,30]
[392306475,1761322345344,-547.9,0.00043013,30]
[392306476,1761322345353,-566.32,0.00043013,30]
[392306477,1761322345363,-500.0,0.00043013,30]
[392306478,1761322345373,-2351.88,0.00043013,2]
[392306479,1761322345394,-500.0,0.00043013,30]
[392306480,1761322345404,-244.65426122,0.00043013,30]
[392306481,1761322345414,-506.73,0.00043013,30]
[392306482,1761322345424,-500.0,0.00043013,30]
[392306483,1761322345435,-500.0,0.00043013,30]
[392306484,1761322345445,-167.07812689,0.00043013,30]
[392306485,1761322345455,-500.0,0.00043013,30]
[392306486,1761322345466,-500.0,0.00043013,30]
[392306487,1761322345476,-772.81,0.00043013,30]
[392306488,1761322345486,-670.73,0.00043013,30]
[392306489,1761322345496,-500.0,0.00043013,30]
[392306490,1761322345505,-457.42195687,0.00043013,30]
[392306491,1761322345515,-500.0,0.00043013,30]
[392306492,1761322345525,-500.0,0.00043013,30]
[392306493,1761322345535,-500.0,0.00043013,30]
[392306494,1761322345545,-850.65,0.00043013,30]
[392306495,1761322345555,-500.0,0.00043013,30]
[392306496,1761322345565,-500.0,0.00043013,30]
[392306497,1761322345577,-507.25,0.00043013,30]
[392306498,1761322345586,-500.0,0.00043013,30]
[392306499,1761322345597,-784.75,0.00043013,30]
[392306500,1761322345607,-500.0,0.00043013,30]
[392306501,1761322345616,-500.0,0.00043013,30]
[392306502,1761322345626,-500.0,0.00043013,30]
[392306503,1761322345636,-500.0,0.00043013,30]
[392306504,1761322345646,-601.83,0.00043013,30]
[392306505,1761322345656,-610.23,0.00043013,30]
[392306506,1761322345667,-732.62,0.00043013,30]
[392306507,1761322345678,-523.68,0.00043013,30]
[392306508,1761322345688,-500.0,0.00043013,30]
[392306509,1761322345697,-500.0,0.00043013,30]
[392306510,1761322345707,-500.0,0.00043013,30]
[392306511,1761322345718,-762.88,0.00043013,30]
[392306512,1761322345727,-626.64,0.00043013,30]
[392306513,1761322345738,-500.0,0.00043013,30]
[392306514,1761322345753,-895.22,0.00043013,30]
[392306515,1761322345764,-500.0,0.00043013,30]
[392306516,1761322345774,-500.0,0.00043013,30]
[392306517,1761322345783,-500.0,0.00043013,30]
[392306518,1761322345795,-821.0,0.00043013,30]
[392306519,1761322345806,-500.0,0.00043013,30]
[392306520,1761322345816,-500.0,0.00043013,30]
[392306521,1761322345827,-500.0,0.00043013,30]
[392306522,1761322345836,-564.45,0.00043013,30]
[392306523,1761322345846,-500.0,0.00043013,30]
[392306524,1761322345856,-425.68962481,0.00043013,30]
[392306525,1761322345866,-500.0,0.00043013,30]
[392306526,1761322345875,-500.0,0.00043013,30]
[392306527,1761322345886,-500.0,0.00043013,30]
[392306528,1761322345895,-558.27,0.00043013,30]
[392306529,1761322345905,-911.49,0.00043013,30]
[392306530,1761322345914,-500.0,0.00043013,30]
[392306531,1761322345924,-500.0,0.00043013,30]
[392306532,1761322345935,-500.0,0.00043013,30]
[392306533,1761322345945,-500.0,0.00043013,30]
[392306534,1761322345955,-500.0,0.00043013,30]
[392306535,1761322345965,-645.37,0.00043013,30]
[392306536,1761322345975,-500.0,0.00043013,30]
[392306537,1761322345984,-500.0,0.00043013,30]
[392306538,1761322345994,-654.32,0.00043013,30]
[392306539,1761322346005,-500.0,0.00043013,30]
[392306540,1761322346015,-1087.75,0.00043013,30]
[392306541,1761322346025,-618.14,0.00043013,30]
[392306542,1761322346035,-597.11,0.00043013,30]
[392306543,1761322346045,-756.12,0.00043013,30]
[392306544,1761322346055,-601.75,0.00043013,30]
[392306545,1761322346066,-500.0,0.00043013,30]
[392306546,1761322346075,-500.0,0.00043013,30]
[392306547,1761322346086,-712.8,0.00043013,30]
[392306548,1761322346095,-500.0,0.00043013,30]
[392306549,1761322346106,-500.0,0.00043013,30]
[392306550,1761322346116,-555.24,0.00043013,30]
[392306551,1761322346126,-540.6,0.00043013,30]
[392306552,1761322346136,-652.9,0.00043013,30]
[392306553,1761322346147,-647.27,0.00043013,30]
[392306554,1761322346157,-500.0,0.00043013,30]
[392306555,1761322346167,-500.0,0.00043013,30]
[392306556,1761322346177,-500.0,0.00043013,30]
[392306557,1761322346187,-571.05,0.00043013,30]
[392306558,1761322346198,-500.0,0.00043013,30]
[392306559,1761322346209,-500.0,0.00043013,30]
[392306560,1761322346219,-500.0,0.00043013,30]
[392306561,1761322346230,-756.91,0.00043013,30]
[392306562,1761322346240,-522.74,0.00043013,30]
[392306563,1761322346250,-632.46,0.00043013,30]
[392306564,1761322346260,-500.0,0.00043013,30]
[392306565,1761322346271,-500.0,0.00043013,30]
[392306566,1761322346280,-310.8862746,0.00043013,30]
[392306567,1761322346291,-583.25498488,0.00043013,30]
[392306568,1761322346301,-711.07,0.00043013,30]
[392306569,1761322346311,-612.7866842,0.00043013,30]
[392306570,1761322346321,-202.44866365,0.00043013,30]
[392306571,1761322346331,-739.05,0.00043013,30]
[392306572,1761322346341,-500.0,0.00043013,30]
[392306573,1761322346352,-253.18123313,0.00043013,30]
[392306574,1761322346362,-602.18,0.00043013,30]
[392306575,1761322346372,-500.0,0.00043013,30]
[392306576,1761322346382,-786.39,0.00043013,30]
[392306577,1761322346392,-500.0,0.00043013,30]
[392306578,1761322346403,-300.0,0.00043013,2]
[392306579,1761322346414,-726.2,0.00043013,30]
[392306580,1761322346424,-600.0,0.00043013,30]
[392306581,1761322346435,-589.03,0.00043013,30]
[392306582,1761322346447,-660.65,0.00043013,30]
[392306583,1761322346458,-771.99,0.00043013,30]
[392306584,1761322346469,-609.55578838,0.00043013,30]
[392306585,1761322346479,-712.13,0.00043013,30]
[392306586,1761322346490,-741.67,0.00043013,30]
[392306587,1761322346501,-692.09,0.00043013,30]
[392306588,1761322346511,-500.0,0.00043013,30]
[392306589,1761322346520,-992.81,0.00043013,30]
[392306590,1761322346530,-506.74,0.00043013,30]
[392306591,1761322346541,-500.0,0.00043013,30]
[392306592,1761322346554,-500.0,0.00043013,30]
[392306593,1761322346564,-500.0,0.00043013,30]
[392306594,1761322346575,-834.39,0.00043013,30]
[392306595,1761322346586,-597.68,0.00043013,30]
[392306596,1761322346596,-852.93,0.00043013,30]
[392306597,1761322346607,-500.0,0.00043013,30]
[392306598,1761322346617,-730.33,0.00043013,30]
[392306599,1761322346628,-500.0,0.00043013,30]
[392306600,1761322346638,-500.0,0.00043013,30]
[392306601,1761322346648,-500.0,0.00043013,30]
[392306602,1761322346658,-162.50175128,0.00043013,30]
[392306603,1761322346668,-804.87,0.00043013,30]
[392306604,1761322346678,-500.0,0.00043013,30]
[392306605,1761322346689,-500.0,0.00043013,30]
[392306606,1761322346699,-1592.15,0.00043013,30]
[392306607,1761322346709,-957.33,0.00043013,30]
[392306608,1761322346719,-500.0,0.00043013,30]
[392306609,1761322346730,-500.0,0.00043013,30]
[392306610,1761322346740,-500.0,0.00043013,30]
[392306611,1761322346756,-500.0,0.00043013,30]
[392306612,1761322346767,-500.0,0.00043013,30]
[392306613,1761322346777,-500.0,0.00043013,30]
[392306614,1761322346789,-500.0,0.00043013,30]
[392306615,1761322346799,-533.69,0.00043013,30]
[392306616,1761322346810,-543.13,0.00043013,30]
[392306617,1761322346823,-705.53,0.00043013,30]
[392306618,1761322346833,-500.0,0.00043013,30]
[392306619,1761322346845,-200.0,0.00043013,30]
[392306620,1761322346855,-500.0,0.00043013,30]
[392306621,1761322346866,-500.0,0.00043013,30]
[392306622,1761322346876,-500.0,0.00043013,30]
[392306623,1761322346888,-637.51,0.00043013,30]
[392306624,1761322346898,-500.0,0.00043013,30]
[392306625,1761322346909,-721.76,0.00043013,30]
[392306626,1761322346919,-500.0,0.00043013,30]
[392306627,1761322346929,-835.57,0.00043013,30]
[392306628,1761322346939,-500.0,0.00043013,30]
[392306629,1761322346950,-500.0,0.00043013,30]
[392306630,1761322346960,-500.0,0.00043013,30]
[392306631,1761322346972,-500.0,0.00043013,30]
[392306632,1761322346983,-752.46,0.00043013,30]
[392306633,1761322346995,-500.0,0.00043013,30]
[392306634,1761322347005,-500.0,0.00043013,30]
[392306635,1761322347015,-500.0,0.00043013,30]
[392306636,1761322347026,-1181.61,0.00043013,30]
[392306637,1761322347036,-500.0,0.00043013,30]
[392306638,1761322347047,-590.26,0.00043013,30]
[392306639,1761322347058,-24520.78,0.00043013,30]
[392306640,1761322347068,-500.0,0.00043013,120]
[392306641,1761322347079,-500.0,0.00043013,30]
[392306642,1761322347090,-597.68,0.00043013,30]
[392306643,1761322347102,-2227.55,0.00043013,30]
[392306644,1761322347113,-500.0,0.00043013,30]
[392306645,1761322347123,-500.0,0.00043013,30]
[392306646,1761322347133,-500.0,0.00043013,30]
[392306647,1761322347143,-635.68,0.00043013,30]
[392306648,1761322347153,-518.98,0.00043013,30]
[392306649,1761322347164,-594.61038538,0.00043013,30]
[392306650,1761322347175,-500.0,0.00043013,30]
[392306651,1761322347186,-500.0,0.00043013,30]
[392306652,1761322347196,-500.0,0.00043013,30]
[392306653,1761322347206,-500.0,0.00043013,30]
[392306654,1761322347216,-500.0,0.00043013,30]
[392306655,1761322347226,-500.0,0.00043013,30]
[392306656,1761322347238,-1049.8,0.00043013,30]
[392306657,1761322347253,-500.0,0.00043013,30]
[392306658,1761322347265,-678.75,0.00043013,30]
[392306659,1761322347276,-500.0,0.00043013,30]
[392306660,1761322347288,-675.92,0.00043013,30]
[392306661,1761322347299,-500.0,0.00043013,30]
[392306662,1761322347310,-500.0,0.00043013,30]
[392306663,1761322347321,-500.0,0.00043013,30]
[392306664,1761322347331,-769.84,0.00043013,30]
[392306665,1761322347342,-643.28,0.00043013,30]
[392306666,1761322347353,-772.75,0.00043013,30]
[392306667,1761322347363,-500.0,0.00043013,30]
[392306668,1761322347374,-500.0,0.00043013,30]
[392306669,1761322347384,-500.0,0.00043013,30]
[392306670,1761322347396,-592.37,0.00043013,30]
[392306671,1761322347407,-500.0,0.00043013,30]
[392306672,1761322347418,-711.48,0.00043013,30]
[392306673,1761322347429,-664.9,0.00043013,30]
[392306674,1761322347440,-500.0,0.00043013,30]
[392306675,1761322347451,-3293.92,0.00043013,30]
[392306676,1761322347462,-651.98,0.00043013,30]
[392306677,1761322347474,-555.16,0.00043013,30]
[392306678,1761322347486,-1314.62,0.00043013,30]
[392306679,1761322347497,-188.32702141,0.00043013,30]
[392306680,1761322347508,-574.28,0.00043013,30]
[392306681,1761322347520,-500.0,0.00043013,30]
[392306682,1761322347531,-500.0,0.00043013,30]
[392306683,1761322347544,-530.89,0.00043013,30]
[392306684,1761322347554,-500.0,0.00043013,30]
[392306685,1761322347565,-500.0,0.00043013,30]
[392306686,1761322347576,-612.78,0.00043013,30]
[392306687,1761322347848,-500.0,0.00043013,30]
[392306688,1761322347861,-571.0,0.00043013,30]
[392306689,1761322347871,-830.29,0.00043013,30]
[392306690,1761322347881,-945.03,0.00043013,30]
[392306691,1761322347891,-1033.26,0.00043013,30]
[392306692,1761322347906,-663.7,0.00043013,30]
[392306693,1761322347917,-500.0,0.00043013,30]
[392306694,1761322347927,-1023.75,0.00043013,30]
[392306695,1761322347937,-500.0,0.00043013,30]
[392306696,1761322347947,-500.0,0.00043013,30]
[392306697,1761322347957,-696.08,0.00043013,30]
[392306698,1761322347968,-641.73,0.00043013,30]
[392306699,1761322347979,-500.0,0.00043013,30]
[392306700,1761322347989,-500.0,0.00043013,30]
[392306701,1761322347999,-500.0,0.00043013,30]
[392306702,1761322348009,-579.17,0.00043013,30]
[392306703,1761322348019,-513.45,0.00043013,30]
[392306704,1761322348029,-500.0,0.00043013,30]
[392306705,1761322348042,-669.12,0.00043013,30]
[392306706,1761322348052,-500.0,0.00043013,30]
[392306707,1761322348062,-516.46,0.00043013,30]
[392306708,1761322348072,-501.88,0.00043013,30]
[392306709,1761322348082,-704.55,0.00043013,30]
[392306710,1761322348092,-641.27,0.00043013,30]
[392306711,1761322348102,-793.21,0.00043013,30]
[392306712,1761322348112,-564.0,0.00043013,30]
[392306713,1761322348121,-681.34,0.00043013,30]
[392306714,1761322348131,-500.0,0.00043013,30]
[392306715,1761322348141,-500.0,0.00043013,30]
[392306716,1761322348151,-583.52,0.00043013,30]
[392306717,1761322348162,-720.15,0.00043013,30]
[392306718,1761322348172,-500.0,0.00043013,30]
[392306719,1761322348182,-500.0,0.00043013,30]
[392306720,1761322348193,-522.17,0.00043013,30]
[392306721,1761322348203,-500.0,0.00043013,30]
[392306722,1761322348212,-553.64,0.00043013,30]
[392306723,1761322348222,-500.0,0.00043013,30]
[392306724,1761322348232,-500.0,0.00043013,30]
[392306725,1761322348241,-500.0,0.00043013,30]
[392306726,1761322348250,-173.4026557,0.00043013,30]
[392306727,1761322348259,-500.0,0.00043013,30]
[392306728,1761322348269,-500.0,0.00043013,30]
[392306729,1761322348279,-236.61648508,0.00043013,30]
[392306730,1761322348288,-540.0,0.00043013,30]
[392306731,1761322348298,-500.0,0.00043013,30]
[392306732,1761322348307,-500.0,0.00043013,30]
[392306733,1761322348317,-500.0,0.00043013,30]
[392306734,1761322348327,-303.2618822,0.00043013,30]
[392306735,1761322348337,-3165.94,0.00043013,30]
[392306736,1761322348348,-577.34,0.00043013,30]
[392306737,1761322348358,-500.0,0.00043013,30]
[392306738,1761322348369,-519.01258731,0.00043013,30]
[392306739,1761322348379,-781.42,0.00043013,30]
[392306740,1761322348389,-500.0,0.00043013,30]
[392306741,1761322348398,-592.04,0.00043013,30]
[392306742,1761322348409,-500.0,0.00043013,30]
[392306743,1761322348420,-507.17,0.00043013,30]
[392306744,1761322348429,-500.0,0.00043013,30]
[392306745,1761322348440,-500.0,0.00043013,30]
[392306746,1761322348451,-627.51,0.00043013,30]
[392306747,1761322348462,-500.0,0.00043013,30]
[392306748,1761322348473,-658.05,0.00043013,30]
[392306749,1761322348483,-500.0,0.00043013,30]
[392306750,1761322348493,-43111.76,0.00043013,30]
[392306751,1761322348509,-824.03,0.00043013,30]
[392306752,1761322348519,-572.74,0.00043013,30]
[392306753,1761322348529,-707.49,0.00043013,30]
[392306754,1761322348540,-500.0,0.00043013,2]
[392306755,1761322348550,-1143.07,0.00043013,30]
[392306756,1761322348561,-560.87,0.00043013,30]
[392306757,1761322348571,-500.0,0.00043013,120]
[392306758,1761322348581,-500.0,0.00043013,30]
[392306759,1761322348591,-500.0,0.00043013,30]
[392306760,1761322348601,-596.94,0.00043013,30]
[392306761,1761322348611,-654.5,0.00043013,30]
[392306762,1761322348622,-507.69,0.00043013,30]
[392306763,1761322348633,-500.0,0.00043013,30]
[392306764,1761322348642,-976.73,0.00043013,30]
[392306765,1761322348652,-526.28,0.00043013,30]
[392306766,1761322348662,-766.16,0.00043013,30]
[392306767,1761322348672,-500.0,0.00043013,30]
[392306768,1761322348683,-392.74711419,0.00043013,30]
[392306769,1761322348693,-500.0,0.00043013,30]
[392306770,1761322348703,-598.92,0.00043013,30]
[392306771,1761322348712,-843.03,0.00043013,30]
[392306772,1761322348723,-500.0,0.00043013,30]
[392306773,1761322348734,-547.11,0.00043013,30]
[392306774,1761322348744,-905.81,0.00043013,30]
[392306775,1761322348758,-649.83,0.00043013,30]
[392306776,1761322348769,-605.46,0.00043013,30]
[392306777,1761322348779,-500.0,0.00043013,30]
[392306778,1761322348791,-500.0,0.00043013,30]
[392306779,1761322348802,-500.0,0.00043013,30]
[392306780,1761322348813,-500.0,0.00043013,30]
[392306781,1761322348824,-500.0,0.00043013,30]
[392306782,1761322348834,-675.1,0.00043013,30]
[392306783,1761322348843,-500.0,0.00043013,30]
[392306784,1761322348854,-500.0,0.00043013,30]
[392306785,1761322348863,-818.3,0.00043013,30]
[392306786,1761322348874,-500.0,0.00043013,30]
[392306787,1761322348886,-500.0,0.00043013,30]
[392306788,1761322348897,-500.0,0.00043013,30]
[392306789,1761322348907,-554.2,0.00043013,30]
[392306790,1761322348917,-500.0,0.00043013,30]
[392306791,1761322348928,-851.07,0.00043013,30]
[392306792,1761322348938,-500.0,0.00043013,30]
[392306793,1761322348949,-500.0,0.00043013,30]
[392306794,1761322348959,-500.0,0.00043013,30]
[392306795,1761322348970,-634.48,0.00043013,30]
[392306796,1761322348981,-517.55246673,0.00043013,30]
[392306797,1761322348992,-943.35,0.00043013,30]
[392306798,1761322349001,-500.0,0.00043013,30]
[392306799,1761322349011,-500.0,0.00043013,30]
[392306800,1761322349021,-500.0,0.00043013,30]
[392306801,1761322349031,-500.0,0.00043013,30]
[392306802,1761322349042,-726.59,0.00043013,30]
[392306803,1761322349052,-500.0,0.00043013,30]
[392306804,1761322349062,-500.0,0.00043013,30]
[392306805,1761322349072,-500.0,0.00043013,30]
[392306806,1761322349082,-530.52,0.00043013,30]
[392306807,1761322349092,-554.24,0.00043013,30]
[392306808,1761322349103,-500.0,0.00043013,30]
[392306809,1761322349113,-500.0,0.00043013,30]
[392306810,1761322349123,-534.6,0.00043013,30]
[392306811,1761322349133,-500.0,0.00043013,30]
[392306812,1761322349143,-703.61,0.00043013,30]
[392306813,1761322349154,-500.0,0.00043013,30]
[392306814,1761322349163,-619.86,0.00043013,30]
[392306815,1761322349173,-500.0,0.00043013,30]
[392306816,1761322349183,-500.0,0.00043013,30]
[392306817,1761322349192,-540.26,0.00043013,30]
[392306818,1761322349202,-506.89,0.00043013,30]
[392306819,1761322349212,-500.0,0.00043013,30]
[392306820,1761322349222,-500.0,0.00043013,30]
[392306821,1761322349231,-500.0,0.00043013,30]
[392306822,1761322349241,-500.0,0.00043013,30]
[392306823,1761322349251,-500.0,0.00043013,30]
[392306824,1761322349260,-474.46363073,0.00043013,30]
[392306825,1761322349270,-500.0,0.00043013,30]
[392306826,1761322349279,-500.0,0.00043013,30]
[392306827,1761322349288,-730.1,0.00043013,30]
[392306828,1761322349300,-500.0,0.00043013,30]
[392306829,1761322349309,-500.0,0.00043013,30]
[392306830,1761322349319,-581.74,0.00043013,30]
[392306831,1761322349329,-500.0,0.00043013,30]
[392306832,1761322349338,-500.0,0.00043013,30]
[392306833,1761322349348,-604.04,0.00043013,30]
[392306834,1761322349358,-500.0,0.00043013,30]
[392306835,1761322349367,-611.69,0.00043013,30]
[392306836,1761322349377,-500.0,0.00043013,30]
[392306837,1761322349387,-500.0,0.00043013,30]
[392306838,1761322349398,-513.05,0.00043013,30]
[392306839,1761322349408,-696.18,0.00043013,30]
[392306840,1761322349418,-500.0,0.00043013,30]
[392306841,1761322349428,-1807.7,0.00043013,30]
[392306842,1761322349437,-500.0,0.00043013,30]
[392306843,1761322349447,-500.0,0.00043013,2]
[392306844,1761322349457,-500.0,0.00043013,30]
[392306845,1761322349466,-500.0,0.00043013,30]
[392306846,1761322349476,-500.0,0.00043013,30]
[392306847,1761322349486,-1380.28,0.00043013,30]
[392306848,1761322349495,-606.24,0.00043013,30]
[392306849,1761322349505,-173.23118484,0.00043013,2]
[392306850,1761322349515,-783.69,0.00043013,30]
[392306851,1761322349526,-500.0,0.00043013,30]
[392306852,1761322349536,-806.84,0.00043013,30]
[392306853,1761322349546,-500.0,0.00043013,30]
[392306854,1761322349556,-2341.55,0.00043013,30]
[392306855,1761322349566,-500.0,0.00043013,30]
[392306856,1761322349576,-500.0,0.00043013,30]
[392306857,1761322349586,-500.0,0.00043013,30]
[392306858,1761322349596,-500.0,0.00043013,30]
[392306859,1761322349605,-716.52,0.00043013,30]
[392306860,1761322349615,-660.17,0.00043013,30]
[392306861,1761322349624,-531.64,0.00043013,30]
[392306862,1761322349634,-500.0,0.00043013,30]
[392306863,1761322349644,-538.15,0.00043013,30]
[392306864,1761322349654,-1192.71315387,0.00043026,120]
[392306865,1761322349663,-500.0,0.00043041,30]
[392306866,1761322349672,-20867.174782,0.0004305,120]
[392306867,1761322349682,-152.53,0.00043092,2]
[392306868,1761322349691,-200.0,0.00043094,120]
[392306869,1761322349701,-159.0,0.00043151,90]
[392306870,1761322349710,-404.03014663,0.0004317,3]
[392306871,1761322349720,-5822.21,0.000432,30]
[392306872,1761322349729,-3212.35322979,0.00043221,120]
[392306873,1761322349738,-163.0,0.0004323,120]
[392306874,1761322349751,-724.20910413,0.0004324,10]
[392306875,1761322349761,-150.0,0.00043249,2]
[392306876,1761322349770,-150.0,0.00043249,2]
[392306877,1761322349779,-150.0,0.00043249,2]
[392306878,1761322349789,-150.0,0.00043249,2]
[392306879,1761322349799,-150.0,0.00043249,2]
[392306880,1761322349808,-150.0,0.00043249,2]
[392306881,1761322349818,-150.0,0.00043249,2]
[392306882,1761322349830,-2053.0,0.00043249,2]
[392306883,1761322349839,-3413.0,0.00043249,2]
[392306884,1761322349849,-572.0,0.00043249,2]
[392306885,1761322349858,-819.0,0.00043249,2]
[392306886,1761322349867,-1591.0,0.00043249,2]
[392306887,1761322349877,-606.0,0.00043249,2]
[392306888,1761322349887,-1312.0,0.00043249,2]
[392306889,1761322349898,-1269.0,0.00043249,2]
[392306890,1761322349907,-818.0,0.00043249,2]
[392306891,1761322349917,-5016.31370596,0.00043253,13]
[392306892,1761322349926,-150.0,0.00043258,30]
[392306893,1761322349935,-150.0,0.00043258,30]
[392306894,1761322349945,-150.0,0.00043258,30]
[392306895,1761322349954,-500.0,0.00043285,30]
[392306896,1761322349964,-151.333365,0.00043287,30]